bitfinex-derivatives/quotes_ETHF0:USTF0_20230104
["timestamp","ask_amount","ask_price","bid_price","bid_amount"]
[1672861582872,2.93334877,1255.6,1255.5,1.585]
[1672861583091,2.93334877,1255.6,1255.4,4.6053]
[1672861583301,2.34895462,1255.5,1255.4,4.6053]
[1672861588137,2.93334877,1255.5,1255.4,1.598]
[1672861588348,5.28617082,1255.5,1255.4,1.598]
[1672861588567,2.35282205,1255.5,1255.4,1.598]
[1672861588762,5.28617082,1255.5,1255.4,1.598]
[1672861589081,5.28617082,1255.5,1255.4,4.098]
[1672861589293,2.35282205,1255.5,1255.4,3.194]
[1672861589501,2.35282205,1255.5,1255.4,5.694]
[1672861589701,2.35282205,1255.5,1255.4,3.194]
[1672861590442,2.35282205,1255.5,1255.4,5.694]
[1672861590652,2.35282205,1255.5,1255.4,3.194]
[1672861590870,2.35282205,1255.6,1255.4,16.6493]
[1672861591081,3.85282205,1255.6,1255.4,14.1493]
[1672861591492,3.85282205,1255.6,1255.4,14.14256891]
[1672861592126,2.35282205,1255.5,1255.4,14.14256891]
[1672861592763,2.35282205,1255.6,1255.4,14.14256891]
[1672861593070,2.35282205,1255.6,1255.5,2.5]
[1672861594331,2.35282205,1255.6,1255.4,14.14256891]
[1672861595277,2.35282205,1255.6,1255.5,2.5]
[1672861601173,2.35282205,1255.6,1255.4,14.14256891]
[1672861601488,2.35282205,1255.6,1255.5,2.5]
[1672861602320,2.35282205,1255.6,1255.5,10.448]
[1672861602844,2.35282205,1255.6,1255.5,2.5]
[1672861603258,2.35282205,1255.6,1255.4,14.14256891]
[1672861603473,2.35282205,1255.6,1255.5,2.5]
[1672861604840,2.35282205,1255.6,1255.5,4.087]
[1672861607891,2.35282205,1255.6,1255.5,12.035]
[1672861608312,2.35282205,1255.6,1255.5,4.087]
[1672861608736,5.28617082,1255.6,1255.5,4.087]
[1672861609472,2.93334877,1255.6,1255.5,4.087]
[1672861609679,2.93334877,1255.6,1255.5,1.587]
[1672861611364,2.93334877,1255.6,1255.5,4.087]
[1672861611579,2.93334877,1255.6,1255.5,1.587]
[1672861612310,2.93334877,1255.6,1255.5,4.087]
[1672861612940,2.93334877,1255.6,1255.5,1.587]
[1672861613890,3.51551776,1255.7,1255.5,1.587]
[1672861615143,10.63601264,1255.7,1255.5,1.587]
[1672861615468,5.01551776,1255.6,1255.3,2.78984229]
[1672861615660,2.95601926,1255.4,1255.3,2.78984229]
[1672861616725,2.95601926,1255.4,1255.3,4.78984229]
[1672861617354,5.32182288,1255.4,1255.3,6.57910573]
[1672861617562,5.3221698,1255.4,1255.3,6.57910573]
[1672861617772,5.3221698,1255.4,1255.3,6.56810573]
[1672861620300,5.3221698,1255.4,1255.3,14.51610573]
[1672861620507,2.36615054,1255.4,1255.3,13.32326344]
[1672861620823,5.3221698,1255.4,1255.3,14.51680451]
[1672861621030,2.36615054,1255.4,1255.3,14.51680451]
[1672861621241,5.3221698,1255.4,1255.3,14.51680451]
[1672861621454,5.3221698,1255.4,1255.3,16.10780451]
[1672861622297,2.36615054,1255.4,1255.3,14.91426344]
[1672861625338,2.36615054,1255.4,1255.3,17.27387666]
[1672861625552,2.36615054,1255.4,1255.3,16.89644231]
[1672861625767,2.36615054,1255.4,1255.3,15.48461322]
[1672861626604,5.3221698,1255.4,1255.3,14.91559019]
[1672861627555,2.95601926,1255.4,1255.3,14.91559019]
[1672861627865,5.33524337,1255.4,1255.3,14.91559019]
[1672861628708,2.95601926,1255.4,1255.3,17.27520341]
[1672861628919,2.95601926,1255.4,1255.3,14.91559019]
[1672861631965,2.95601926,1255.4,1255.3,16.10959766]
[1672861632172,2.95601926,1255.4,1255.3,6.16159766]
[1672861632383,3.51551776,1255.5,1255.3,6.16159766]
[1672861632384,3.51551776,1255.5,1255.3,4.37100747]
[1672861632696,3.51551776,1255.5,1255.4,1.58]
[1672861632903,3.51551776,1255.5,1255.4,4.08]
[1672861633332,3.51551776,1255.5,1255.4,1.58]
[1672861635114,9.12871264,1255.6,1255.4,4.08]
[1672861635328,9.12871264,1255.6,1255.4,1.58]
[1672861635955,3.51551776,1255.5,1255.4,1.58]
[1672861636166,9.12871264,1255.6,1255.4,4.08]
[1672861636483,9.12871264,1255.6,1255.4,1.58]
[1672861637429,5.01551776,1255.6,1255.4,1.58]
[1672861637741,9.12871264,1255.6,1255.4,1.58]
[1672861639528,3.51551776,1255.5,1255.4,1.58]
[1672861641528,9.12871264,1255.6,1255.4,1.58]
[1672861641940,3.51551776,1255.6,1255.4,1.58]
[1672861642150,3.51551776,1255.6,1255.4,2.77400747]
[1672861642358,3.51551776,1255.6,1255.4,5.78130747]
[1672861642884,11.71671264,1255.7,1255.5,2.5]
[1672861643208,2.97007365,1255.6,1255.5,5.48459766]
[1672861643417,4.47007365,1255.6,1255.5,5.48459766]
[1672861644257,4.47007365,1255.6,1255.5,3.69400747]
[1672861644573,2.97007365,1255.6,1255.5,5.48459766]
[1672861644779,4.088,1255.7,1255.5,3.69400747]
[1672861644993,7.60351776,1255.7,1255.5,3.69400747]
[1672861645413,7.60351776,1255.7,1255.5,1.19400747]
[1672861645624,7.60351776,1255.7,1255.5,3.69400747]
[1672861645939,2.96715032,1255.6,1255.5,3.69400747]
[1672861646151,7.60351776,1255.7,1255.5,1.19400747]
[1672861646362,2.96648073,1255.6,1255.5,1.19400747]
[1672861646674,2.96648073,1255.6,1255.5,3.69400747]
[1672861646885,2.96648073,1255.6,1255.5,1.19400747]
[1672861647098,2.96648073,1255.6,1255.5,3.69400747]
[1672861648039,2.96648073,1255.6,1255.5,1.19400747]
[1672861648246,7.60351776,1255.7,1255.4,7.06459766]
[1672861648459,5.33990835,1255.5,1255.4,7.06459766]
[1672861650248,5.33990835,1255.5,1255.4,7.06389971]
[1672861650564,5.33990835,1255.5,1255.4,5.87059019]
[1672861650775,5.33990835,1255.5,1255.4,7.06390228]
[1672861651087,2.96661575,1255.5,1255.4,7.06390228]
[1672861652136,2.96661575,1255.5,1255.4,4.56390228]
[1672861652347,4.54961575,1255.5,1255.4,1.19331209]
[1672861652559,4.54961575,1255.5,1255.3,1.79059019]
[1672861652560,3.171,1255.5,1255.3,1.19331209]
[1672861652770,6.68651776,1255.5,1255.2,2.98390228]
[1672861652978,5.3443566,1255.3,1255.2,2.98390228]
[1672861653395,2.3752696,1255.3,1255.2,2.98390228]
[1672861653709,2.3752696,1255.3,1255.2,1.79059019]
[1672861653924,2.3752696,1255.3,1255.2,4.29059019]
[1672861654351,2.3752696,1255.3,1255.2,1.79059019]
[1672861655081,2.3752696,1255.3,1255.2,2.98393307]
[1672861655082,5.3443566,1255.3,1255.2,2.98393307]
[1672861655814,5.34226763,1255.3,1255.2,2.98393307]
[1672861656342,5.34265508,1255.3,1255.2,2.98393307]
[1672861657181,2.37356808,1255.3,1255.2,2.98393307]
[1672861657601,2.37356808,1255.3,1255.2,2.97815228]
[1672861657812,2.37356808,1255.3,1255.2,4.2848094]
[1672861658122,5.34265508,1255.4,1255.2,6.45361322]
[1672861658334,2.37356808,1255.3,1255.2,6.45361322]
[1672861659070,5.34265508,1255.4,1255.2,6.45361322]
[1672861659389,5.34265508,1255.4,1255.3,6.86615921]
[1672861659808,2.969087,1255.4,1255.3,6.86615921]
[1672861660754,2.969087,1255.4,1255.3,4.36615921]
[1672861661385,2.969087,1255.4,1255.3,6.86615921]
[1672861661596,2.969087,1255.4,1255.3,4.36615921]
[1672861662225,5.469087,1255.4,1255.3,2.78115921]
[1672861662858,2.5,1255.4,1255.3,1.588]
[1672861663485,5.47128391,1255.4,1255.3,1.588]
[1672861664328,2.5,1255.4,1255.3,1.588]
[1672861665900,2.5,1255.4,1255.2,1.19315921]
[1672861666113,4.5561697,1255.3,1255.1,1.19315921]
[1672861666424,2.37476692,1255.2,1255.1,3.69315921]
[1672861666842,2.37476692,1255.2,1255.1,1.19315921]
[1672861668007,2.9681697,1255.2,1255.1,1.19315921]
[1672861668419,2.9681697,1255.2,1255.0,2.78515921]
[1672861668626,4.87181291,1255.1,1255.0,2.78515921]
[1672861669893,4.87181291,1255.1,1255.0,1.19315921]
[1672861670422,4.87181291,1255.1,1254.9,2.78415921]
[1672861671999,2.37181291,1255.0,1254.9,2.78415921]
[1672861672415,5.4681697,1255.1,1254.9,1.591]
[1672861672416,4.87181291,1255.1,1254.9,1.591]
[1672861672625,4.87181291,1255.1,1254.9,2.78415921]
[1672861674216,2.37181291,1255.1,1254.9,2.78415921]
[1672861674424,8.43398261,1255.2,1254.9,2.78415921]
[1672861674641,5.46581291,1255.2,1254.9,2.78415921]
[1672861674844,2.37181291,1255.1,1254.9,2.78415921]
[1672861676314,2.37181291,1255.1,1254.9,1.591]
[1672861677582,2.37181291,1255.1,1254.9,2.78415921]
[1672861677787,8.4293486,1255.2,1254.9,2.78415921]
[1672861678312,8.42865993,1255.2,1254.9,2.78415921]
[1672861678522,5.46049023,1255.2,1254.9,2.78415921]
[1672861678734,5.46049023,1255.2,1254.9,1.591]
[1672861678735,8.42865993,1255.2,1254.9,1.591]
[1672861679579,2.36649023,1255.1,1254.9,1.591]
[1672861680412,8.42865993,1255.2,1254.9,1.591]
[1672861680625,2.36649023,1255.1,1254.9,1.591]
[1672861681050,8.42865993,1255.2,1254.9,1.591]
[1672861681680,2.36649023,1255.1,1254.9,1.591]
[1672861684829,3.95149023,1255.1,1254.8,2.77815921]
[1672861687876,2.36649023,1255.0,1254.8,1.585]
[1672861689775,1.583,1254.9,1254.7,1.19315921]
[1672861690300,3.94949023,1254.9,1254.7,1.19315921]
[1672861690925,1.583,1254.9,1254.7,1.19315921]
[1672861691352,3.94949023,1254.9,1254.6,5.57626521]
[1672861691562,3.94949023,1254.9,1254.7,2.5]
[1672861691978,1.583,1254.9,1254.7,3.69315921]
[1672861692295,3.94949023,1254.9,1254.7,3.69315921]
[1672861692505,1.583,1254.9,1254.7,3.69315921]
[1672861692716,3.95449023,1255.0,1254.7,5.28715921]
[1672861694715,6.92265993,1255.0,1254.7,5.28715921]
[1672861694924,3.95449023,1255.0,1254.7,5.28715921]
[1672861695343,2.36649023,1254.9,1254.7,4.094]
[1672861695866,2.36649023,1254.9,1254.7,5.28715921]
[1672861697129,6.92265993,1255.0,1254.7,5.28715921]
[1672861697344,2.36649023,1254.9,1254.7,5.28715921]
[1672861698597,2.36649023,1254.9,1254.7,2.78715921]
[1672861699235,2.36649023,1254.9,1254.7,1.594]
[1672861699444,2.36649023,1254.9,1254.7,2.78715921]
[1672861699656,2.36649023,1254.9,1254.7,1.594]
[1672861699969,2.36649023,1254.9,1254.7,2.78715921]
[1672861700706,4.5621697,1254.8,1254.6,1.883106]
[1672861701017,4.87276956,1254.7,1254.6,1.883106]
[1672861701226,5.4681697,1254.7,1254.6,1.883106]
[1672861701642,4.094,1254.7,1254.6,1.883106]
[1672861701862,5.688,1254.7,1254.6,1.883106]
[1672861702704,8.65095866,1254.7,1254.6,1.883106]
[1672861705539,11.01947453,1254.7,1254.6,1.883106]
[1672861705738,8.05651587,1254.7,1254.6,1.883106]
[1672861705952,11.01947453,1254.7,1254.6,1.883106]
[1672861706380,8.65095866,1254.7,1254.6,1.883106]
[1672861706591,8.05634596,1254.7,1254.6,1.883106]
[1672861707531,11.01930462,1254.7,1254.6,1.883106]
[1672861708686,8.05634596,1254.7,1254.6,1.883106]
[1672861710794,16.00434596,1254.7,1254.6,1.883106]
[1672861710994,18.96730462,1254.7,1254.6,1.883106]
[1672861711205,16.59895866,1254.7,1254.6,1.883106]
[1672861712266,18.96630602,1254.7,1254.6,1.883106]
[1672861712476,16.00318495,1254.7,1254.6,1.883106]
[1672861712788,8.05518495,1254.7,1254.6,1.883106]
[1672861714045,11.01814361,1254.7,1254.6,1.883106]
[1672861714256,18.96681567,1254.7,1254.6,1.883106]
[1672861714465,16.59895866,1254.7,1254.6,1.56429201]
[1672861714683,1.5,1254.6,1254.3,13.958]
[1672861715005,3.36558081,1254.4,1254.1,1.19315921]
[1672861716469,5.73302189,1254.4,1254.0,16.74515921]
[1672861716787,3.36558081,1254.4,1254.1,2.5]
[1672861718354,3.36558081,1254.4,1254.1,3.69315921]
[1672861718993,1.59,1254.4,1254.1,3.69315921]
[1672861719197,3.36858081,1254.5,1254.2,9.542]
[1672861719408,7.23702189,1254.6,1254.3,1.591]
[1672861719726,3.36558081,1254.5,1254.2,1.594]
[1672861720885,1.59,1254.5,1254.2,2.78715921]
[1672861721093,1.59,1254.5,1254.3,2.5]
[1672861722768,6.46144108,1254.7,1254.5,1.588]
[1672861722769,4.14302189,1254.7,1254.5,1.588]
[1672861722984,1.77558081,1254.7,1254.6,1.594]
[1672861723292,1.77558081,1254.8,1254.6,1.594]
[1672861723503,1.77558081,1254.8,1254.5,9.536]
[1672861723504,1.77558081,1254.8,1254.7,1.594]
[1672861723721,2.36744108,1254.9,1254.7,9.542]
[1672861723722,1.77558081,1254.9,1254.7,9.542]
[1672861723928,1.77558081,1254.9,1254.8,3.18]
[1672861724559,1.77558081,1254.9,1254.8,1.586]
[1672861724768,4.86744108,1254.9,1254.8,1.586]
[1672861725502,4.14283027,1254.9,1254.8,1.586]
[1672861725719,1.77538919,1254.9,1254.8,1.586]
[1672861727925,4.14283027,1254.9,1254.8,1.586]
[1672861731076,4.14283027,1254.9,1254.7,1.594]
[1672861731292,4.14210487,1254.8,1254.6,1.585]
[1672861731497,1.77462007,1254.7,1254.6,1.585]
[1672861731705,1.77462007,1254.7,1254.6,4.085]
[1672861732863,1.77462007,1254.7,1254.6,1.585]
[1672861735813,1.77462007,1254.7,1254.5,1.588]
[1672861735814,2.36744108,1254.7,1254.5,1.588]
[1672861736022,1.77565105,1254.6,1254.5,1.588]
[1672861736227,4.27565105,1254.6,1254.5,1.588]
[1672861738443,6.64309213,1254.6,1254.5,1.588]
[1672861739069,4.86744108,1254.6,1254.5,1.588]
[1672861739283,9.40674244,1254.6,1254.3,2.97730474]
[1672861739492,5.732242,1254.5,1254.3,1.19315921]
[1672861739805,2.5,1254.4,1254.3,1.19315921]
[1672861740007,2.5,1254.4,1254.3,3.69315921]
[1672861740223,3.36480092,1254.5,1254.3,1.19315921]
[1672861740640,3.36480092,1254.5,1254.3,3.69315921]
[1672861740861,2.5,1254.4,1254.3,3.69315921]
[1672861741069,2.5,1254.4,1254.3,1.19315921]
[1672861742226,2.5,1254.4,1254.2,3.37814553]
[1672861742227,4.27680092,1254.4,1254.2,4.57130474]
[1672861743380,1.77680092,1254.3,1254.1,4.56230474]
[1672861743697,1.5,1254.2,1254.1,2.97730474]
[1672861744113,1.5,1254.2,1254.1,1.19315921]
[1672861744533,3.27680092,1254.2,1254.1,1.19315921]
[1672861744947,3.27680092,1254.2,1254.0,2.97730474]
[1672861745271,3.27680092,1254.2,1254.1,1.19315921]
[1672861745597,1.5,1254.2,1254.1,2.5]
[1672861746119,1.5,1254.2,1254.0,2.97730474]
[1672861746540,1.5,1254.2,1254.0,5.47730474]
[1672861748329,1.5,1254.2,1254.1,1.19315921]
[1672861748536,1.5,1254.2,1254.1,2.5]
[1672861748953,1.5,1254.2,1254.0,5.47730474]
[1672861749167,1.5,1254.2,1254.0,2.97730474]
[1672861749797,1.5,1254.2,1254.0,1.19315921]
[1672861750319,1.595,1254.1,1253.9,12.49362418]
[1672861750743,3.37180092,1254.1,1253.9,12.49362418]
[1672861750954,3.37180092,1254.1,1253.9,11.30046497]
[1672861751366,1.595,1254.0,1253.9,11.30046497]
[1672861757157,9.543,1254.0,1253.9,11.30046497]
[1672861757584,12.043,1254.0,1253.9,11.30046497]
[1672861758004,13.81980092,1254.0,1253.9,11.30046497]
[1672861758737,15.40580092,1254.0,1253.9,11.30046497]
[1672861758946,17.773242,1254.0,1253.9,11.30046497]
[1672861759263,15.40580092,1254.0,1253.9,11.30046497]
[1672861761161,17.773242,1254.0,1253.9,11.30046497]
[1672861761363,15.40580092,1254.0,1253.9,11.30046497]
[1672861761572,15.40580092,1254.0,1253.7,15.06729309]
[1672861761573,18.30014044,1254.0,1253.7,15.06729309]
[1672861761788,1.586,1253.8,1253.7,15.06729309]
[1672861762519,11.129,1253.8,1253.7,15.06729309]
[1672861763258,13.629,1253.8,1253.7,15.06729309]
[1672861765672,12.043,1253.8,1253.7,15.06729309]
[1672861771144,9.543,1253.8,1253.7,15.06729309]
[1672861771562,1.595,1253.8,1253.7,15.06729309]
[1672861775551,9.543,1253.8,1253.7,15.06729309]
[1672861775975,11.122,1253.8,1253.7,15.06729309]
[1672861776179,12.622,1253.8,1253.7,15.06729309]
[1672861777556,4.674,1253.8,1253.7,15.06729309]
[1672861777765,12.622,1253.8,1253.7,15.06729309]
[1672861778082,4.674,1253.8,1253.7,15.06729309]
[1672861778911,1.595,1253.8,1253.7,15.06729309]
[1672861784277,9.543,1253.8,1253.7,15.06729309]
[1672861784487,11.043,1253.8,1253.7,15.06729309]
[1672861785746,12.81980092,1253.8,1253.7,15.06729309]
[1672861786072,15.18430849,1253.8,1253.7,15.06729309]
[1672861787543,13.41044108,1253.8,1253.7,15.06729309]
[1672861790580,16.36974244,1253.8,1253.7,15.06729309]
[1672861791534,14.00230136,1253.8,1253.7,15.06729309]
[1672861792368,13.4103379,1253.8,1253.7,15.06729309]
[1672861792582,16.36963926,1253.8,1253.7,15.06729309]
[1672861792908,13.4103379,1253.8,1253.7,15.06729309]
[1672861793109,19.37693926,1253.8,1253.7,15.06729309]
[1672861793319,16.4176379,1253.8,1253.7,15.06729309]
[1672861793526,17.00960136,1253.8,1253.7,15.06729309]
[1672861795214,19.37641999,1253.8,1253.7,15.06729309]
[1672861795418,17.00960136,1253.8,1253.7,16.2604523]
[1672861796262,8.42296929,1253.8,1253.7,16.2604523]
[1672861796478,8.41896929,1253.8,1253.7,16.2604523]
[1672861796787,3.95966793,1253.8,1253.7,16.2604523]
[1672861796994,6.91896929,1253.8,1253.7,16.2604523]
[1672861797842,4.55030136,1253.8,1253.7,18.04459783]
[1672861798042,4.55030136,1253.8,1253.7,16.2604523]
[1672861798892,4.5983,1253.8,1253.7,15.06729309]
[1672861799514,12.5463,1253.8,1253.7,15.06729309]
[1672861799841,14.0413,1253.8,1253.7,15.06729309]
[1672861800146,14.0413,1253.8,1253.7,16.2604523]
[1672861800565,14.0413,1253.8,1253.7,15.06729309]
[1672861801204,14.0413,1253.8,1253.7,16.2604523]
[1672861801617,17.00356787,1253.8,1253.7,16.2604523]
[1672861802151,14.0413,1253.8,1253.7,16.2604523]
[1672861802876,14.0413,1253.8,1253.7,15.06729309]
[1672861803613,14.0413,1253.8,1253.7,16.2604523]
[1672861803823,17.00176643,1253.8,1253.7,16.2604523]
[1672861804979,13.99446643,1253.8,1253.7,16.2604523]
[1672861805290,11.034,1253.8,1253.7,16.2604523]
[1672861806877,13.99501842,1253.8,1253.7,16.2604523]
[1672861807088,11.034,1253.8,1253.7,16.2604523]
[1672861808761,11.034,1253.8,1253.7,15.06729309]
[1672861809084,14.54951776,1253.8,1253.7,15.06729309]
[1672861809924,11.034,1253.8,1253.7,15.06729309]
[1672861810137,11.034,1253.8,1253.7,16.2604523]
[1672861812125,13.99585428,1253.8,1253.7,16.2604523]
[1672861812335,11.034,1253.8,1253.7,16.2604523]
[1672861814233,13.99558064,1253.8,1253.7,18.04459783]
[1672861815072,11.034,1253.8,1253.7,16.2604523]
[1672861815282,11.034,1253.8,1253.7,15.06729309]
[1672861816437,14.54951776,1253.8,1253.7,15.06729309]
[1672861818129,14.0413,1253.8,1253.7,15.06729309]
[1672861818446,14.0413,1253.8,1253.7,16.2604523]
[1672861819919,14.0413,1253.8,1253.7,15.06729309]
[1672861820234,14.0413,1253.8,1253.7,8.79029309]
[1672861820436,0.07946762,1253.7,1253.5,1.19315921]
[1672861820654,9.543,1253.6,1253.5,1.19315921]
[1672861820965,12.5503,1253.6,1253.5,1.19315921]
[1672861821381,7.948,1253.5,1253.3,2.97730474]
[1672861821591,15.00039269,1253.4,1253.3,1.19315921]
[1672861821804,18.00769269,1253.4,1253.3,1.19315921]
[1672861822017,18.00769269,1253.4,1253.3,2.97730474]
[1672861822751,20.37634934,1253.4,1253.3,2.97730474]
[1672861822958,14.40873362,1253.4,1253.3,1.78414553]
[1672861823173,14.40873362,1253.4,1253.3,2.97902351]
[1672861823488,16.1842152,1253.4,1253.3,1.78414553]
[1672861823689,3.36748158,1253.4,1253.3,1.78414553]
[1672861823900,1.77548158,1253.4,1253.3,6.64375875]
[1672861824115,1.77548158,1253.4,1253.3,4.85961322]
[1672861824326,1.77548158,1253.4,1253.3,6.27365312]
[1672861824542,1.77548158,1253.4,1253.3,4.15181652]
[1672861825373,1.77548158,1253.4,1253.3,1.7922033]
[1672861826432,4.1442152,1253.4,1253.3,2.98678792]
[1672861826845,4.1442152,1253.4,1253.3,1.7922033]
[1672861827271,1.77548158,1253.4,1253.3,2.98655362]
[1672861827591,1.77548158,1253.4,1253.3,1.7922033]
[1672861828217,1.77548158,1253.4,1253.3,2.98648207]
[1672861829373,4.1442152,1253.4,1253.3,1.19427877]
[1672861829580,2.36873362,1253.4,1253.3,1.19427877]
[1672861829794,17.10569269,1253.4,1253.2,1.19427877]
[1672861830004,17.10569269,1253.4,1253.1,2.98648207]
[1672861830005,8.51501776,1253.3,1253.1,2.98648207]
[1672861830217,3.36824138,1253.2,1253.1,2.98648207]
[1672861830530,4.86824138,1253.2,1253.1,2.98648207]
[1672861831273,6.04970428,1253.2,1253.1,1.19427877]
[1672861832415,12.81624138,1253.2,1253.0,2.98648207]
[1672861832625,2.77625726,1253.1,1253.0,1.7922033]
[1672861833161,2.77625726,1253.1,1253.0,4.2922033]
[1672861833373,1.595,1253.1,1253.0,4.2922033]
[1672861833682,4.27625726,1253.2,1253.0,4.2922033]
[1672861833898,4.27625726,1253.2,1253.1,1.19271839]
[1672861834423,2.77625726,1253.2,1253.1,1.19271839]
[1672861834951,1.595,1253.2,1253.1,2.98492169]
[1672861835161,1.595,1253.2,1253.1,5.99222169]
[1672861836734,2.77625726,1253.2,1253.1,4.20001839]
[1672861837154,1.595,1253.2,1253.1,1.19271839]
[1672861837470,4.54949864,1253.2,1253.0,3.69271839]
[1672861837787,4.54949864,1253.2,1253.0,5.48492169]
[1672861837998,2.77625726,1253.2,1253.0,5.48492169]
[1672861840006,2.77625726,1253.2,1253.1,4.20001839]
[1672861840431,2.95449864,1253.3,1253.1,5.79001839]
[1672861840637,2.95449864,1253.3,1253.1,7.58222169]
[1672861840638,1.18125726,1253.3,1253.1,7.58222169]
[1672861841788,0.58645726,1253.3,1253.1,7.58222169]
[1672861842000,1.77324138,1253.4,1253.1,7.58222169]
[1672861844315,4.13786645,1253.4,1253.1,7.58222169]
[1672861844525,1.5,1253.3,1253.1,7.58222169]
[1672861844941,1.5,1253.3,1253.1,2.78271839]
[1672861844942,3.27324138,1253.3,1253.1,2.78271839]
[1672861845156,1.584,1253.2,1253.0,2.98492169]
[1672861845362,3.36824138,1253.1,1252.9,4.20001839]
[1672861845784,3.36824138,1253.1,1252.9,3.0073]
[1672861846203,3.36824138,1253.1,1252.9,4.20001839]
[1672861846416,3.36824138,1253.1,1252.9,6.70001839]
[1672861847675,1.595,1253.1,1252.9,6.70001839]
[1672861847885,3.36824138,1253.1,1252.9,6.70001839]
[1672861848304,1.595,1253.1,1252.9,6.70001839]
[1672861848505,3.36824138,1253.1,1252.9,4.20001839]
[1672861849042,1.595,1253.1,1252.9,4.20001839]
[1672861849253,1.595,1253.1,1252.9,6.70001839]
[1672861849461,1.591,1253.0,1252.9,6.70001839]
[1672861849986,1.591,1253.0,1252.9,8.49222169]
[1672861850822,1.591,1253.0,1252.9,4.20001839]
[1672861851042,1.591,1253.0,1252.9,6.70001839]
[1672861852189,1.591,1253.0,1252.9,4.20001839]
[1672861852511,1.591,1253.0,1252.9,3.0073]
[1672861853033,1.591,1253.0,1252.9,5.5073]
[1672861853241,1.591,1253.0,1252.9,3.0073]
[1672861853657,1.591,1253.0,1252.9,5.5073]
[1672861853870,1.591,1253.0,1252.9,4.20001839]
[1672861854190,1.591,1253.0,1252.9,6.70001839]
[1672861854400,1.591,1253.0,1252.9,4.20001839]
[1672861854611,1.591,1253.0,1252.9,6.70001839]
[1672861856082,1.591,1253.0,1252.9,8.49222169]
[1672861856288,1.591,1253.0,1252.9,6.70001839]
[1672861856497,1.591,1253.0,1252.9,8.49222169]
[1672861857239,3.36824138,1253.2,1252.9,7.2995033]
[1672861857447,3.36824138,1253.2,1253.1,1.5]
[1672861858074,3.36824138,1253.2,1253.0,2.6926437]
[1672861858496,5.73286645,1253.2,1252.9,8.492147]
[1672861858811,5.73286645,1253.2,1253.0,1.5]
[1672861859231,1.77324138,1253.1,1253.0,2.6926437]
[1672861860386,1.77324138,1253.2,1253.0,4.4854852]
[1672861860704,1.77324138,1253.2,1253.1,5.7955819]
[1672861860907,1.77324138,1253.3,1253.1,7.5877852]
[1672861861966,1.77324138,1253.2,1253.1,5.7955819]
[1672861862811,1.77324138,1253.2,1253.1,7.5877852]
[1672861863011,1.77324138,1253.3,1253.1,7.5877852]
[1672861864278,1.77324138,1253.3,1253.2,1.1932819]
[1672861864795,0.20234138,1253.4,1253.2,3.3862033]
[1672861865010,2.36462507,1253.4,1253.3,4.20082599]
[1672861865216,2.36462507,1253.5,1253.3,4.20082599]
[1672861865636,2.36462507,1253.5,1253.4,2.5]
[1672861865951,5.32501776,1253.5,1253.4,2.5]
[1672861866163,2.36462507,1253.5,1253.4,2.5]
[1672861868167,2.36462507,1253.6,1253.4,5.28852599]
[1672861868368,5.32501776,1253.6,1253.5,4.6023]
[1672861868689,2.36462507,1253.6,1253.5,4.6023]
[1672861871730,2.96039269,1253.7,1253.5,4.6023]
[1672861871731,5.32501776,1253.7,1253.5,4.6023]
[1672861871940,5.32501776,1253.7,1253.6,2.5]
[1672861872469,2.96039269,1253.7,1253.6,2.5]
[1672861872685,5.3220567,1253.7,1253.6,2.5]
[1672861872995,5.32202019,1253.7,1253.6,2.5]
[1672861873312,2.96039269,1253.7,1253.6,2.5]
[1672861873516,5.32122607,1253.7,1253.6,2.5]
[1672861874361,2.36083338,1253.7,1253.6,2.5]
[1672861878980,2.36083338,1253.7,1253.5,1.595]
[1672861879198,12.49839269,1253.6,1253.3,3.0073]
[1672861879513,4.095,1253.4,1253.3,2.5]
[1672861880250,6.44651155,1253.4,1253.1,3.0073]
[1672861880876,6.44651155,1253.4,1253.1,5.5073]
[1672861881392,6.44651155,1253.4,1253.2,2.5]
[1672861883085,3.94651155,1253.4,1253.2,2.5]
[1672861883287,1.591,1253.4,1253.2,2.5]
[1672861883504,4.091,1253.4,1253.2,2.5]
[1672861884656,6.44751155,1253.4,1253.2,2.5]
[1672861886548,6.44751155,1253.4,1253.1,7.1013]
[1672861888129,6.44751155,1253.4,1253.2,2.5]
[1672861888862,3.94751155,1253.4,1253.2,2.5]
[1672861890220,1.591,1253.4,1253.3,3.0073]
[1672861890431,3.95151155,1253.5,1253.3,3.0073]
[1672861890644,2.35651155,1253.5,1253.3,4.6023]
[1672861894325,5.31690424,1253.5,1253.3,4.6023]
[1672861894952,2.35651155,1253.4,1253.3,4.6023]
[1672861895163,3.85651155,1253.4,1253.3,4.6023]
[1672861895479,2.35651155,1253.4,1253.3,4.6023]
[1672861896629,2.35651155,1253.4,1253.3,1.595]
[1672861897689,2.35651155,1253.4,1253.2,8.27982599]
[1672861898002,5.31690424,1253.4,1253.2,7.0863]
[1672861899795,7.81690424,1253.4,1253.2,8.27982599]
[1672861900107,2.35651155,1253.4,1253.2,8.27982599]
[1672861901896,5.31690424,1253.5,1253.3,2.77852599]
[1672861902104,2.35651155,1253.5,1253.3,2.77852599]
[1672861902305,2.35651155,1253.5,1253.4,4.5933]
[1672861902515,2.35651155,1253.6,1253.4,13.74282599]
[1672861902726,2.35651155,1253.6,1253.5,3.079]
[1672861904519,2.35651155,1253.6,1253.5,11.033]
[1672861904731,2.35651155,1253.7,1253.6,2.5]
[1672861904937,2.35651155,1253.7,1253.6,7.0993]
[1672861907152,2.96039269,1253.7,1253.6,7.0993]
[1672861907359,2.96039269,1253.7,1253.6,4.5993]
[1672861907566,2.96039269,1253.7,1253.5,1.5]
[1672861907780,2.36020056,1253.6,1253.5,1.5]
[1672861909883,5.32057571,1253.7,1253.6,2.63979944]
[1672861910618,5.32067347,1253.7,1253.6,5.64709944]
[1672861910939,2.36028078,1253.7,1253.6,5.64709944]
[1672861911153,2.36028078,1253.7,1253.6,8.14709944]
[1672861911770,2.36028078,1253.7,1253.6,9.74109944]
[1672861919145,5.32067347,1253.7,1253.6,9.74109944]
[1672861920299,2.96039269,1253.7,1253.6,7.63979944]
[1672861920626,4.55039269,1253.7,1253.6,7.63979944]
[1672861920842,14.1403,1253.7,1253.6,7.63979944]
[1672861921258,17.69333528,1253.7,1253.6,7.63979944]
[1672861924100,14.68603528,1253.7,1253.6,7.63979944]